{"text_format":"1","workbook":"xlsx","n_sheets":1,"sheets":["Eelarve kavand"],"not_rendered":{"charts":0,"images":0,"macros":0,"external_links":0,"defined_names":0,"comments":0,"pivot_tables":0},"unopened":[],"bounds":{"document_bytes":16777216,"sheet_cells":100000,"rows_first":2000,"rows_last":500,"rows_between":2000,"halvings":0,"cell_chars":16384,"cell_head_chars":4096},"cells_cut":0,"cells_raw":0,"read":"whole","date_system":"1900"}

{"sheet":"Eelarve kavand","index":0,"n_rows":23,"n_cols":14,"rows_kept":23,"cut":false,"hidden":false,"merged":[[0,0,0,8],[2,10,2,13]]}
["Personaalse uurimistoetuse taotluse eelarve koostamise abivahend. NB! Detailset eelarvet taotluse puhul ei hinnata. See tabel on mõeldud abivahendina taotlejale, hindamaks, millist granditüüpi taotleda."]
["Kululiik ",2018,2019,2020,2021,2022,"KOKKU","Keskmine aastane summa","NB! Rühmaprojekti puhul tuleks juhul, kui projektis osaleb isikuid eri asutustest, eelarve koostamisel mõelda, kuidas jagunevad vastavad kuluread aastate lõikes asutuste vahel. See on vajalik hiljem asutustevahelise konsortsiumilepingu sõlmimiseks.",null,"Kui projekti eelarve on välja arvutatud, saab hinnata, milline granditüüp kõige paremini sobiks"]
["Otsene kulu",{"$f":"SUM(B4,B16)","v":0},{"$f":"SUM(C4,C16)","v":0},{"$f":"SUM(D4,D16)","v":0},{"$f":"SUM(E4,E16)","v":0},{"$f":"SUM(F4,F16)","v":0},{"$f":"SUM(B3:F3)","v":0},{"$f":"AVERAGEIF(B3:F3,\">0\", B3:F3)","v":{"$error":"#DIV/0!"}},null,null,"Rühmagrandi fikseeritud mahud 2017. aastal esitatud taotlustele: "]
["Personalikulu, sh",{"$f":"SUM(B5,B12)","v":0},{"$f":"SUM(C5,C12)","v":0},{"$f":"SUM(D5,D12)","v":0},{"$f":"SUM(E5,E12)","v":0},{"$f":"SUM(F5,F12)","v":0},{"$f":"SUM(B4:F4)","v":0},{"$f":"AVERAGEIF(B4:F4,\">0\",B4:F4)","v":{"$error":"#DIV/0!"}},"NB! Värvilised lahtrid on lukustatud, neisse ei ole vaja midagi sisestada, nendesse arvutatakse summad automaatselt",null,null,"Otsesed kulud (aastas)","Üldkulu (aastas)","Fikseeritud grandimaht kokku (aastas) "]
["töötasud koos kõigi riiklike maksudega, maksetega ja seadusest tulenevate hüvitistega, sh",{"$f":"SUM(B6:B11)","v":0},{"$f":"SUM(C6:C11)","v":0},{"$f":"SUM(D6:D11)","v":0},{"$f":"SUM(E6:E11)","v":0},{"$f":"SUM(F6:F11)","v":0},{"$f":"SUM(B5:F5)","v":0},null,null,null,"Mitteeksperimentaalne väike rühmagrant (RG)","105 000","26 250","131 250"]
["põhitäitja 1",null,null,null,null,null,null,null,"Igasse lahtrisse arvestada vastava kulurea aastane kulu",null,"Mitteeksperimentaalne suur RG","148 000","37 000","185 000"]
["põhitäitja 2",null,null,null,null,null,null,null,null,null,"Eksperimentaalne väike RG","114 000","28 500","142 500"]
["Vajadusel lisada siia ridu rohkemate põhitäitjate kaasamise korral",null,null,null,null,null,null,null,null,null,"Eksperimentaalne suur RG","160 000","40 000","200 000"]
["täitja 1"]
["Vajadusel lisada siia ridu rohkemate muude täitjate kaasamise korral"]
["täitja 2"]
["magistrantide ja doktorantide teadustöö stipendiumid",{"$f":"SUM(B13:B15)","v":0},{"$f":"SUM(C13:C15)","v":0},0,0,0,{"$f":"SUM(B12:F12)","v":0}]
["üliõpilane 1"]
["Vajadusel lisada siia ridu rohkemate stipendiumi saajate kaasamise korral"]
["üliõpilane 2"]
["Teadustöö kulu, sh",{"$f":"SUM(B17:B21)","v":0},{"$f":"SUM(C17:C21)","v":0},0,0,0,0,{"$f":"AVERAGEIF(B16:F16,\">0\",B16:F16)","v":{"$error":"#DIV/0!"}}]
["lähetuskulud, sh üliõpilaste osalemise kulud konverentsidel jms",null,null,null,null,null,0,null,"Siin arvestada kõigi projekti kaasatud isikute orienteeruv lähetuskulu aastas kokku "]
["projekti täitmisega otseselt seotud põhivara (vastavalt vastuvõtva asutuse poolt sätestatud määratlusele) soetamiskulud (kuni10% uurimisprojekti täitmisega seotud otsestest kuludest)",null,null,null,null,null,0,null,"Ostud, mis jäävad alla asutuses kehtestatud põhivara määra, näidata muude teadustöö kulude all. Asutuses kehtestatud põhivara määra kohta saab infot asutuse rahandusosakonnast (raamatupidamisest)"]
["projekti täitmisel saadud teadus- ja arendustegevuse tulemuste publitseerimise ja populariseerimisega ning intellektuaalomandi kaitsmisega seotud kulud",null,null,null,null,null,0]
["sisseostetavad teadus- ja arendusteenused",null,null,null,null,null,0]
["muud teadustöö läbiviimiseks vajalikud otsesed kulud lähtuvalt uurimisprojekti eripärast",null,null,null,null,null,0,null,"Siin kajastada ostud, mis jäävad alla asutuses kehtestatud põhivara määra. Samuti saab siin näidata kulutusi, mis on seotud eksperimentaalse projektiga"]
["Üldkulu",{"$f":"B3*0.25","v":0},{"$f":"C3*0.25","v":0},{"$f":"D3*0.25","v":0},{"$f":"E3*0.25","v":0},{"$f":"F3*0.25","v":0},0,null,"Üldkulu arvutatakse automaatselt "]
["Grandimaht kokku",{"$f":"SUM(B3,B22)","v":0},{"$f":"SUM(C3,C22)","v":0},{"$f":"SUM(D3,D22)","v":0},{"$f":"SUM(E3,E22)","v":0},{"$f":"SUM(F3,F22)","v":0},0,{"$f":"AVERAGEIF(B23:F23, \">0\",B23:F23)","v":{"$error":"#DIV/0!"}},"Siin real kajastuv summa on taotlejale orientiiriks grandimahu (suur või väike) valikul. Juhul, kui see summa jääb suure ja väikse rühmagrandi mahu vahele, võib taotleja a) valida suure või väikse grandimahu seda valikut põhjendades või b) taotleda fikseeritud grandimahtudest erinevat granti (ent mitte suuremat, kui on fikseeritud suure grandi maht)"]